bitfinex/quotes_BTCUSD_20251230
["timestamp","ask_amount","ask_price","bid_price","bid_amount"]
[1767054746198,0.01148,87244.0,87234.0,0.01146342]
[1767054746744,0.01148,87244.0,87234.0,0.06878046]
[1767054747731,0.01148,87244.0,87236.0,0.01146315]
[1767054747938,0.01148,87244.0,87235.0,0.01146328]
[1767054748101,0.01148,87244.0,87236.0,0.01146315]
[1767054748697,0.00051322,87248.0,87235.0,0.01146328]
[1767054748919,0.01148,87247.0,87235.0,0.01146328]
[1767054749314,0.01148,87247.0,87236.0,0.01146315]
[1767054749513,0.01146184,87246.0,87233.0,0.01146355]
[1767054750377,0.01146197,87245.0,87229.0,0.06878439]
[1767054750718,0.02294171,87247.0,87231.0,0.05731844]
[1767054750918,0.01146184,87246.0,87233.0,0.01146355]
[1767054751841,0.01146197,87245.0,87233.0,0.01146355]
[1767054752044,0.01146184,87246.0,87233.0,0.01146355]
[1767054752498,0.01146197,87245.0,87232.0,0.01146368]
[1767054753068,0.01146236,87242.0,87228.0,0.0229442]
[1767054753275,0.01146236,87242.0,87229.0,0.01146407]
[1767054753487,0.0114625,87241.0,87228.0,0.0229442]
[1767054753758,0.0114625,87241.0,87227.0,0.01148]
[1767054753934,0.0114625,87241.0,87228.0,0.0114642]
[1767054754136,0.01146236,87242.0,87230.0,0.01146394]
[1767054754276,0.01146236,87242.0,87227.0,0.01148]
[1767054754481,0.01146263,87240.0,87227.0,0.02294434]
[1767054754680,0.01146276,87239.0,87227.0,0.01148]
[1767054754914,0.01146276,87239.0,87227.0,0.02294434]
[1767054755343,0.01146263,87240.0,87228.0,0.0114642]
[1767054755567,0.01146263,87240.0,87227.0,0.02294434]
[1767054755769,0.01146263,87240.0,87227.0,0.01148]
[1767054755770,0.01146289,87238.0,87227.0,0.01148]
[1767054755969,0.06878003,87235.0,87227.0,0.01148]
[1767054756146,0.06878003,87235.0,87225.0,0.01148]
[1767054756147,0.01146355,87233.0,87225.0,0.01148]
[1767054756570,0.00055,87225.0,87216.0,0.01146578]
[1767054756781,0.00055,87225.0,87222.0,0.01148]
[1767054757080,0.01146381,87231.0,87222.0,0.01148]
[1767054757241,0.01146368,87232.0,87222.0,0.01148]
[1767054758089,0.01146394,87230.0,87222.0,0.01148]
[1767054758243,0.01146368,87232.0,87222.0,0.01148]
[1767054758472,0.01146381,87231.0,87222.0,0.01148]
[1767054758674,0.01146355,87233.0,87222.0,0.01148]
[1767054758896,0.01146368,87232.0,87222.0,0.01148]
[1767054759101,0.01146355,87233.0,87222.0,0.01148]
[1767054759334,0.01146368,87232.0,87222.0,0.01148]
[1767054759971,0.01146355,87233.0,87222.0,0.01148]
[1767054760453,0.01146368,87232.0,87222.0,0.01148]
[1767054760660,0.01146355,87233.0,87222.0,0.01158772]
[1767054761081,0.06877943,87236.0,87222.0,0.01158772]
[1767054761302,0.01146342,87234.0,87222.0,0.01158772]
[1767054761659,0.01146328,87235.0,87223.0,0.01146486]
[1767054761877,0.01146328,87235.0,87222.0,0.02305271]
[1767054762081,0.01146342,87234.0,87222.0,0.02305271]
[1767054762492,0.01146342,87234.0,87222.0,0.01158772]
[1767054762720,0.01146342,87234.0,87222.0,0.02305271]
[1767054762924,0.01146328,87235.0,87222.0,0.02305271]
[1767054763285,0.01146328,87235.0,87223.0,0.01146486]
[1767054763489,0.01146315,87236.0,87223.0,0.01146486]
[1767054763689,0.01146315,87236.0,87222.0,0.02305271]
[1767054763690,0.01146355,87233.0,87222.0,0.01158772]
[1767054764109,0.01146368,87232.0,87222.0,0.01158772]
[1767054764305,0.01146381,87231.0,87222.0,0.01158772]
[1767054764523,0.01146368,87232.0,87222.0,0.01158772]
[1767054765153,0.01146394,87230.0,87222.0,0.01158772]
[1767054765348,0.01146407,87229.0,87222.0,0.01158772]
[1767054765503,0.01146368,87232.0,87222.0,0.01158772]
[1767054765907,0.01146381,87231.0,87222.0,0.01158772]
[1767054766126,0.01146394,87230.0,87222.0,0.01158772]
[1767054766483,0.01146381,87231.0,87222.0,0.01158772]
[1767054766770,0.01146368,87232.0,87222.0,0.01158772]
[1767054767198,0.01146381,87231.0,87222.0,0.01158772]
[1767054767606,0.01146368,87232.0,87222.0,0.01158772]
[1767054767822,0.01146381,87231.0,87222.0,0.01158772]
[1767054768055,0.01146368,87232.0,87222.0,0.01158772]
[1767054768176,0.01146381,87231.0,87222.0,0.01158772]
[1767054768594,0.01146368,87232.0,87222.0,0.01158772]
[1767054769844,0.01146381,87231.0,87222.0,0.01158772]
[1767054770011,0.01146368,87232.0,87222.0,0.01158772]
[1767054770612,0.06878295,87231.0,87222.0,0.01158772]
[1767054770831,0.01146381,87231.0,87222.0,0.01158772]
[1767054771357,0.01146394,87230.0,87222.0,0.01158772]
[1767054771528,0.01146407,87229.0,87222.0,0.01158772]
[1767054771736,0.01146381,87231.0,87222.0,0.01158772]
[1767054771942,0.01146394,87230.0,87222.0,0.01158772]
[1767054772141,0.01146381,87231.0,87222.0,0.01158772]
[1767054773402,0.06878196,87233.0,87222.0,0.01158772]
[1767054773631,0.01146368,87232.0,87222.0,0.01158772]
[1767054774081,0.01146381,87231.0,87222.0,0.01158772]
[1767054774315,0.01146394,87230.0,87222.0,0.01158772]
[1767054775184,0.01146381,87231.0,87222.0,0.01158772]
[1767054775396,0.01146394,87230.0,87222.0,0.00010772]
[1767054775803,0.01146407,87229.0,87222.0,0.00010772]
[1767054776098,0.01146394,87230.0,87222.0,0.00010772]
[1767054776294,0.01146394,87230.0,87223.0,0.01148]
[1767054776526,0.0114642,87228.0,87223.0,0.01148]
[1767054776697,0.01146407,87229.0,87223.0,0.01148]
[1767054777081,0.01146394,87230.0,87223.0,0.01148]
[1767054777716,0.01146407,87229.0,87223.0,0.01148]
[1767054777938,0.01146394,87230.0,87223.0,0.01148]
[1767054778755,0.01146407,87229.0,87223.0,0.01148]
[1767054779278,0.01146434,87227.0,87222.0,3.156e-05]
[1767054780377,0.01146434,87227.0,87209.0,0.0116608]
[1767054780378,0.01146486,87223.0,87209.0,0.0116608]
[1767054780535,0.01146552,87218.0,87210.0,0.01148]
[1767054780733,0.01146512,87221.0,87210.0,0.01148]
[1767054780926,0.01146526,87220.0,87210.0,0.01148]
[1767054781333,0.01146512,87221.0,87210.0,0.01148]
[1767054781587,0.01146526,87220.0,87210.0,0.01148]
[1767054781832,0.01146499,87222.0,87210.0,0.01148]
[1767054782012,0.01146552,87218.0,87209.0,0.00030206]
[1767054782224,0.01146499,87222.0,87209.0,0.00030206]
[1767054782225,0.01146539,87219.0,87209.0,0.00030206]
[1767054782455,0.01146526,87220.0,87209.0,0.00030206]
[1767054782605,0.01146512,87221.0,87209.0,0.00030206]
[1767054783507,0.01146486,87223.0,87209.0,0.00030206]
[1767054783708,0.01074651,87222.0,87209.0,0.00030206]
[1767054783960,0.01146499,87222.0,87209.0,0.00030206]
[1767054784524,0.01146486,87223.0,87209.0,0.00030206]
[1767054784708,0.02221002,87222.0,87209.0,0.01176876]
[1767054784929,0.01146499,87222.0,87209.0,0.01176876]
[1767054785129,0.01146499,87222.0,87210.0,0.01146657]
[1767054785327,0.01146499,87222.0,87209.0,0.01176876]
[1767054785533,0.06880374,87224.0,87190.0,0.22938211]
[1767054785534,0.01146591,87215.0,87190.0,0.22938211]
[1767054785739,0.01146591,87215.0,87201.0,0.01146775]
[1767054786029,0.01146591,87215.0,87200.0,0.01146788]
[1767054786030,0.01146604,87214.0,87200.0,0.01146788]
[1767054786232,0.01146644,87211.0,87199.0,0.01146802]
[1767054786550,0.01146631,87212.0,87199.0,0.01146802]
[1767054787355,0.01146604,87214.0,87200.0,0.01146788]
[1767054787656,0.05733221,87211.0,87197.0,0.0005941]
[1767054787783,0.01146604,87214.0,87193.0,0.01148]
[1767054787784,0.01146788,87200.0,87193.0,0.01148]
[1767054787981,0.01146802,87199.0,87193.0,0.01148]
[1767054788194,0.01146802,87199.0,87186.0,0.07340141]
[1767054788195,0.01146802,87199.0,87186.0,0.08487114]
[1767054788370,0.01146815,87198.0,87187.0,0.01148]
[1767054788557,0.01146802,87199.0,87187.0,0.01148]
[1767054788759,0.01146775,87201.0,87187.0,0.02294959]
[1767054788962,0.06880512,87203.0,87188.0,0.01146946]
[1767054789164,0.01146762,87202.0,87190.0,0.0114692]
[1767054789920,0.01146775,87201.0,87190.0,0.0001446]
[1767054790122,0.01146802,87199.0,87190.0,0.0001446]
[1767054790320,0.01146828,87197.0,87190.0,0.0001446]
[1767054790571,0.01146881,87193.0,87190.0,4.6e-06]
[1767054790793,0.01146867,87194.0,87188.0,4.6e-06]
[1767054791002,0.01146841,87196.0,87188.0,4.6e-06]
[1767054791204,0.01146815,87198.0,87188.0,4.6e-06]
[1767054791411,0.00729716,87201.0,87196.0,0.000549]
[1767054791620,0.0033113,87201.0,87198.0,0.00055]
[1767054792239,0.0033113,87201.0,87192.0,0.01146894]
[1767054792446,0.0033113,87201.0,87193.0,0.01146881]
[1767054792826,0.0033113,87201.0,87194.0,0.01146867]
[1767054793073,0.0027623,87201.0,87192.0,0.01146894]
[1767054793305,0.01146723,87205.0,87191.0,0.01146907]
[1767054794558,0.01146723,87205.0,87192.0,0.01146894]
[1767054795007,0.06880394,87205.0,87186.0,0.13066324]
[1767054795229,0.01146749,87203.0,87190.0,0.0114692]
[1767054795651,0.01146749,87203.0,87191.0,0.01146907]
[1767054795865,0.01146749,87203.0,87190.0,0.0114692]
[1767054796504,0.01146749,87203.0,87191.0,0.01146907]
[1767054796711,0.01146736,87204.0,87191.0,0.01146907]
[1767054798594,0.01146723,87205.0,87192.0,0.01146894]
[1767054798952,0.01148,87206.0,87193.0,0.01146881]
[1767054799295,0.0229471,87206.0,87193.0,0.01146881]
[1767054801168,0.01146736,87204.0,87192.0,0.01146894]
[1767054801554,0.01146736,87204.0,87190.0,0.0114692]
[1767054801555,0.01146723,87205.0,87191.0,0.01146907]
[1767054801755,0.01146723,87205.0,87193.0,0.01146881]
[1767054802197,0.01146749,87203.0,87189.0,0.01146933]
[1767054802391,0.01146749,87203.0,87191.0,0.01146907]
[1767054802704,0.01146723,87205.0,87193.0,0.01146881]
[1767054802855,0.01146723,87205.0,87192.0,0.01146894]
[1767054803467,0.01146723,87205.0,87193.0,0.01146881]
[1767054804365,0.01146723,87205.0,87192.0,0.01146894]
[1767054804544,0.0229471,87206.0,87193.0,0.01146881]
[1767054804899,0.0229471,87206.0,87192.0,0.01146894]
[1767054805102,0.0229471,87206.0,87193.0,0.01146881]
[1767054805352,0.0229471,87206.0,87194.0,0.01146867]
[1767054805703,0.01148,87206.0,87194.0,0.01146867]
[1767054807522,0.0229471,87206.0,87193.0,0.01146881]
[1767054808484,0.01146723,87205.0,87193.0,0.01146881]
[1767054808683,0.0229471,87206.0,87193.0,0.01146881]
[1767054809697,0.0229471,87206.0,87194.0,0.01146867]
[1767054810446,0.01148,87206.0,87194.0,0.01146867]
[1767054812916,0.01146723,87205.0,87192.0,0.01146894]
[1767054813147,0.01146723,87205.0,87191.0,0.01146907]
[1767054813148,0.01146736,87204.0,87191.0,0.01146907]
[1767054813632,0.01146749,87203.0,87190.0,0.0114692]
[1767054813857,0.01146749,87203.0,87191.0,0.01146907]
[1767054814070,0.01146762,87202.0,87189.0,0.01146933]
[1767054814500,0.01146762,87202.0,87188.0,0.01147406]
[1767054814617,0.01146775,87201.0,87188.0,4.6e-06]
[1767054814830,0.01146775,87201.0,87188.0,0.01147406]
[1767054815031,0.01146788,87200.0,87188.0,4.6e-06]
[1767054815656,0.01146775,87201.0,87188.0,4.6e-06]
[1767054815874,0.01146788,87200.0,87188.0,0.01147406]
[1767054816084,0.01146762,87202.0,87189.0,0.01146933]
[1767054816281,0.01146762,87202.0,87188.0,0.01147406]
[1767054816434,0.02221568,87201.0,87188.0,0.01147406]
[1767054816778,0.01146775,87201.0,87188.0,0.01147406]
[1767054816913,0.01146775,87201.0,87189.0,0.01146933]
[1767054817121,0.01146788,87200.0,87188.0,4.6e-06]
[1767054817319,0.01075629,87199.0,87189.0,0.01146933]
[1767054817521,0.01146762,87202.0,87189.0,0.01146933]
[1767054817875,0.02222405,87201.0,87188.0,0.01147406]
[1767054818196,0.01146815,87198.0,87189.0,0.01148]
[1767054818600,0.000549,87189.0,87182.0,0.40134128]
[1767054818753,0.12817358,87185.0,87182.0,0.40134128]
[1767054819098,0.06810493,87184.0,87183.0,0.18793284]
[1767054819742,0.06810493,87184.0,87181.0,0.32838089]
[1767054819865,0.01075496,87183.0,87181.0,0.28028676]
[1767054820062,0.05735326,87179.0,87165.0,0.0002102]
[1767054820262,0.05735326,87179.0,87173.0,0.30334804]
[1767054820263,0.06735655,87174.0,87173.0,0.30334804]
[1767054820509,0.07811151,87174.0,87173.0,0.19438431]
[1767054820677,0.06735786,87172.0,87171.0,0.24956304]
[1767054820859,0.07963282,87172.0,87171.0,0.11605235]
[1767054821063,0.09280118,87172.0,87170.0,0.19389273]
[1767054821284,0.09280118,87172.0,87170.0,0.05628578]
[1767054821285,0.13892854,87171.0,87170.0,0.05628578]
[1767054821502,0.13892854,87171.0,87165.0,0.0002102]
[1767054821503,0.05736181,87166.0,87165.0,0.0002102]
[1767054821700,0.05736181,87166.0,87149.0,0.01172]
[1767054821701,0.06596733,87166.0,87149.0,0.01172]
[1767054821902,0.05736313,87164.0,87163.0,0.01147275]
[1767054822105,0.06811809,87164.0,87163.0,0.01147275]
[1767054822434,0.01147302,87161.0,87157.0,0.01152]
[1767054823028,0.01147315,87160.0,87157.0,0.01152]
[1767054823207,0.06883902,87160.0,87157.0,0.01152]
[1767054823699,0.02216207,87159.0,87151.0,0.01172]
[1767054823933,0.01147328,87159.0,87151.0,0.01172]
[1767054824098,0.12817358,87156.0,87151.0,0.01172]
[1767054825046,0.06883441,87166.0,87156.0,0.000549]
[1767054825276,0.01068276,87165.0,87156.0,0.00063974]
[1767054825479,0.01068276,87164.0,87156.0,9.074e-05]
[1767054825613,0.01147209,87168.0,87156.0,9.074e-05]
[1767054825812,0.02215112,87167.0,87156.0,9.074e-05]
[1767054826012,0.01067889,87166.0,87156.0,9.074e-05]
[1767054826216,0.01067889,87165.0,87156.0,9.074e-05]
[1767054826421,0.01147209,87168.0,87156.0,9.074e-05]
[1767054826651,0.01067541,87167.0,87156.0,9.074e-05]
[1767054826837,0.01067541,87166.0,87156.0,9.074e-05]
[1767054826998,0.01067541,87165.0,87156.0,9.074e-05]
[1767054827348,0.01147223,87167.0,87156.0,9.074e-05]
[1767054827555,0.01067246,87166.0,87156.0,9.074e-05]
[1767054827764,0.06883151,87170.0,87156.0,9.074e-05]
[1767054827765,0.01067246,87165.0,87156.0,9.074e-05]
[1767054827925,0.12817358,87171.0,87165.0,0.00055]
[1767054828126,0.01147196,87169.0,87166.0,1e-08]
[1767054828332,0.13964528,87171.0,87166.0,1e-08]
[1767054828714,0.01147183,87170.0,87166.0,1e-08]
[1767054829484,0.05736049,87168.0,87166.0,1e-08]
[1767054829669,0.05736049,87168.0,87156.0,9.047e-05]
[1767054829670,0.01147328,87159.0,87156.0,9.047e-05]
[1767054829876,0.01147328,87159.0,87158.0,0.01143]
[1767054830076,0.06883861,87161.0,87158.0,0.010421]
[1767054830335,0.01147262,87164.0,87158.0,0.010421]
[1767054830527,0.01147236,87166.0,87158.0,0.010421]
[1767054830736,0.01147223,87167.0,87158.0,0.010421]
[1767054830957,0.01147196,87169.0,87158.0,0.010421]
[1767054831161,0.01147236,87166.0,87158.0,0.010421]
[1767054831675,0.01147223,87167.0,87159.0,0.01152]
[1767054831906,0.01147223,87167.0,87160.0,1e-08]
[1767054832538,0.01147209,87168.0,87160.0,1e-08]
[1767054833396,0.01147196,87169.0,87160.0,1e-08]
[1767054833599,0.01147209,87168.0,87160.0,1e-08]
[1767054833775,0.05735918,87170.0,87160.0,1e-08]
[1767054833953,0.01147209,87168.0,87160.0,1e-08]
[1767054834158,0.05735918,87170.0,87160.0,1e-08]
[1767054834159,0.01147183,87170.0,87160.0,1e-08]
[1767054834363,0.01147223,87167.0,87160.0,1e-08]
[1767054834583,0.01147236,87166.0,87160.0,1e-08]
[1767054834784,0.01147209,87168.0,87160.0,1e-08]
[1767054835256,0.01147236,87166.0,87160.0,1e-08]
[1767054835423,0.01147223,87167.0,87160.0,1e-08]
[1767054835590,0.01147249,87165.0,87160.0,1e-08]
[1767054835789,0.06883345,87167.0,87160.0,1e-08]
[1767054835790,0.01147223,87167.0,87160.0,1e-08]
[1767054835993,0.06883008,87172.0,87160.0,1e-08]
[1767054836192,0.01147157,87172.0,87160.0,1e-08]
[1767054836540,0.13964528,87171.0,87160.0,1e-08]
[1767054836944,0.13964344,87185.0,87171.0,0.000549]
[1767054837156,0.01147065,87179.0,87172.0,4.671e-05]
[1767054837362,0.01198415,87180.0,87172.0,4.671e-05]
[1767054837565,0.00051363,87180.0,87172.0,4.671e-05]
[1767054838575,0.01147117,87175.0,87173.0,1e-08]
[1767054838935,0.06882786,87174.0,87173.0,1e-08]
[1767054839137,0.01147209,87168.0,87166.0,0.04592]
[1767054839339,0.01147209,87168.0,87166.0,0.045417]
[1767054839622,0.05735928,87170.0,87166.0,0.045417]
[1767054839623,0.06883163,87170.0,87167.0,0.01152]
[1767054840113,0.01147236,87166.0,87156.0,0.04601035]
[1767054840344,0.06883163,87170.0,87157.0,0.01152]
[1767054840532,0.01147223,87167.0,87157.0,0.01152]
[1767054841323,0.01147209,87168.0,87157.0,0.01152]
[1767054841781,0.0688318,87169.0,87157.0,0.01152]
[1767054841985,0.01147209,87168.0,87157.0,0.01152]
[1767054842317,0.01147262,87164.0,87157.0,0.01152]
[1767054842517,0.01147249,87165.0,87157.0,0.01152]
[1767054843489,0.01147249,87165.0,87149.0,0.0002]
[1767054843490,0.01068547,87164.0,87136.0,0.04592]
[1767054843693,0.05067441,87165.0,87137.0,0.01152]
[1767054843694,0.12817358,87139.0,87137.0,0.01152]
[1767054844553,0.18555338,87139.0,87137.0,0.01152]
[1767054844749,0.18555338,87139.0,87127.0,6.4e-05]
[1767054844750,0.06885877,87135.0,87132.0,1e-08]
[1767054845090,0.06886315,87130.0,87127.0,6.4e-05]
[1767054845230,0.01147697,87131.0,87128.0,0.01152]
[1767054845418,0.01147683,87132.0,87128.0,0.01152]
[1767054845615,0.01147631,87136.0,87128.0,0.01152]
[1767054845833,0.06885763,87137.0,87128.0,0.01152]
[1767054845834,0.0106914,87135.0,87128.0,0.01152]
[1767054846098,0.0106914,87134.0,87128.0,0.01152]
[1767054846318,0.0106914,87133.0,87128.0,0.01152]
[1767054846494,0.0106914,87132.0,87128.0,0.01152]
[1767054846633,0.0106914,87131.0,87128.0,0.01152]
[1767054846831,0.01147657,87134.0,87128.0,0.01152]
[1767054847034,0.01069439,87133.0,87128.0,0.01152]
[1767054847300,0.01069439,87132.0,87129.0,0.01152]
[1767054847500,0.12817358,87139.0,87132.0,0.00055]
[1767054847704,0.01147604,87138.0,87129.0,0.01152]
[1767054847984,0.13964949,87139.0,87129.0,0.01152]
[1767054848192,0.01147618,87137.0,87129.0,0.01152]
[1767054848391,0.01147604,87138.0,87129.0,0.01152]
[1767054848601,0.13964949,87139.0,87129.0,0.01152]
[1767054848759,0.06885708,87137.0,87129.0,0.01152]
[1767054848940,0.01147631,87136.0,87129.0,0.01152]
[1767054849140,0.01147604,87138.0,87129.0,0.01152]
[1767054849589,0.13964949,87139.0,87129.0,0.01152]
[1767054849795,0.01147604,87138.0,87129.0,0.01152]
[1767054849955,0.12817358,87139.0,87129.0,0.01152]
[1767054850694,0.12762358,87139.0,87129.0,0.01152]
[1767054850898,0.01147394,87154.0,87134.0,0.01147657]
[1767054851197,0.01147446,87150.0,87131.0,0.01147697]
[1767054851396,0.01147433,87151.0,87131.0,0.01147697]
[1767054851603,0.01147446,87150.0,87131.0,0.01147697]
[1767054852778,0.0114742,87152.0,87131.0,0.01147697]
[1767054852984,0.0114742,87152.0,87132.0,0.01147683]
[1767054853194,0.01147446,87150.0,87132.0,0.01147683]
[1767054853400,0.01147446,87150.0,87131.0,0.01147697]
[1767054853961,0.01147446,87150.0,87130.0,0.0114771]
[1767054854163,0.0114746,87149.0,87130.0,0.0114771]
[1767054854300,0.0114746,87149.0,87129.0,0.02299723]
[1767054855090,0.0114746,87149.0,87130.0,0.0114771]
[1767054855301,0.01147446,87150.0,87131.0,0.01147697]
[1767054855531,0.0114746,87149.0,87130.0,0.0114771]
[1767054856603,0.0114746,87149.0,87129.0,0.02299723]
[1767054857606,0.01147473,87148.0,87129.0,0.01152]
[1767054858622,0.01147499,87146.0,87129.0,0.01152]
[1767054858800,0.01147473,87148.0,87129.0,0.02299723]
[1767054859001,0.01147486,87147.0,87129.0,0.01152]
[1767054859405,0.01147512,87145.0,87129.0,0.01152]
[1767054859605,0.01070281,87144.0,87129.0,0.01152]
[1767054859788,0.01070281,87143.0,87129.0,0.01152]
[1767054860006,0.01070281,87142.0,87129.0,0.01152]
[1767054860200,0.01070281,87141.0,87129.0,0.01152]
[1767054860425,0.01070281,87140.0,87129.0,0.01152]
[1767054860673,0.01070281,87139.0,87129.0,0.01152]
[1767054860807,0.01070281,87138.0,87129.0,0.01152]
[1767054861012,0.01070281,87137.0,87129.0,0.01152]
[1767054861216,0.01070281,87136.0,87129.0,0.01152]
[1767054861408,0.01070281,87135.0,87130.0,0.0114771]
[1767054861659,0.01070281,87134.0,87130.0,0.0114771]
[1767054861856,0.01147446,87150.0,87130.0,0.0114771]
[1767054862009,0.01147473,87148.0,87129.0,0.02299723]
[1767054862209,0.01070281,87147.0,87129.0,0.02299723]
[1767054862416,0.01070281,87146.0,87129.0,0.01152]
[1767054862789,0.01070281,87145.0,87129.0,0.01152]
[1767054862989,0.01070281,87144.0,87129.0,0.01152]
[1767054863124,0.01070281,87143.0,87129.0,0.01152]
[1767054863330,0.01070281,87142.0,87129.0,0.01152]
[1767054863558,0.01070281,87141.0,87129.0,0.01152]
[1767054863740,0.01070281,87140.0,87129.0,0.01152]
[1767054863941,0.01070281,87139.0,87129.0,0.01152]
[1767054864160,0.01070281,87138.0,87129.0,0.01152]
[1767054864364,0.01070281,87137.0,87129.0,0.01152]
[1767054864566,0.01070281,87136.0,87129.0,0.01152]
[1767054864774,0.01070281,87135.0,87129.0,0.01152]
[1767054864940,0.01147486,87147.0,87129.0,0.01152]
[1767054865145,0.02217826,87146.0,87129.0,0.01152]
[1767054865389,0.01070327,87145.0,87129.0,0.01152]
[1767054865588,0.01070327,87144.0,87129.0,0.01152]
[1767054865765,0.01070327,87143.0,87129.0,0.01152]
[1767054865968,0.01070327,87142.0,87129.0,0.01152]
[1767054866165,0.01070327,87141.0,87129.0,0.01152]
[1767054866326,0.0114742,87152.0,87132.0,0.01147683]
[1767054866531,0.01147433,87151.0,87132.0,0.01147683]
[1767054866933,0.0114742,87152.0,87133.0,0.0114767]
[1767054867183,0.0114742,87152.0,87131.0,0.01147697]
[1767054867184,0.00010785,87153.0,87132.0,0.01147683]
[1767054867386,0.00010785,87153.0,87138.0,0.01147604]
[1767054867559,0.00010785,87153.0,87142.0,0.01147552]
[1767054867765,0.00010785,87153.0,87143.0,0.04592]
[1767054868222,0.00010785,87153.0,87145.0,0.01147512]
[1767054868422,0.00010785,87153.0,87143.0,0.05739539]
[1767054868423,0.00010785,87153.0,87143.0,0.04592]
[1767054872393,0.00010785,87153.0,87143.0,0.05739539]
[1767054872718,0.00010785,87153.0,87143.0,0.04592]
[1767054873170,0.01147288,87162.0,87143.0,0.04592]
[1767054873171,0.02318676,87163.0,87149.0,0.0114746]
[1767054873392,0.02318676,87163.0,87143.0,0.04592]
[1767054873393,0.0002174,87173.0,87156.0,0.01147367]
[1767054873657,0.01168884,87173.0,87157.0,0.01152]
[1767054873982,0.01147157,87172.0,87157.0,0.01152]
[1767054874143,0.01168884,87173.0,87157.0,0.01152]
[1767054874477,0.01147157,87172.0,87157.0,0.01152]
[1767054874886,0.0002174,87173.0,87157.0,0.01152]
[1767054875438,0.0002174,87173.0,87158.0,0.01147341]
[1767054875646,0.0002174,87173.0,87162.0,0.01147288]
[1767054875848,0.0002174,87173.0,87163.0,0.04592]
[1767054876248,0.0002174,87173.0,87163.0,0.03511]
[1767054877770,0.0002174,87173.0,87164.0,0.01152]
[1767054882068,0.00051363,87180.0,87164.0,0.01152]
[1767054882069,0.00051363,87180.0,87164.0,0.02299262]
[1767054882305,0.01071021,87179.0,87164.0,0.02299262]
[1767054882581,0.01071021,87178.0,87164.0,0.02299262]
[1767054882757,0.00051363,87180.0,87164.0,0.01152]
[1767054883077,0.01070875,87179.0,87164.0,0.01152]
[1767054883240,0.01070875,87178.0,87164.0,0.01152]
[1767054883424,0.02217953,87178.0,87164.0,0.01152]
[1767054883622,0.01147078,87178.0,87164.0,0.01152]
[1767054883824,0.00051363,87180.0,87164.0,0.01152]
[1767054884048,0.01070749,87179.0,87164.0,0.01152]
[1767054884255,0.01070749,87178.0,87164.0,0.0113]
[1767054884448,0.01147065,87179.0,87164.0,0.0113]
[1767054884897,0.01198415,87180.0,87164.0,0.0113]
[1767054885049,0.01070653,87179.0,87164.0,0.0113]
[1767054885381,0.01198415,87180.0,87164.0,0.0113]
[1767054885686,0.01070587,87179.0,87164.0,0.0113]
[1767054885980,0.00051363,87180.0,87164.0,0.0113]
[1767054886199,0.01070585,87179.0,87164.0,0.0113]
[1767054886394,0.00051363,87180.0,87164.0,0.0113]
[1767054886545,0.01070547,87179.0,87164.0,0.0113]
[1767054886883,0.00051363,87180.0,87164.0,0.0113]
[1767054887087,0.01070547,87179.0,87164.0,0.02277262]
[1767054887261,0.00051363,87180.0,87165.0,0.01147249]
[1767054887517,0.01070536,87179.0,87164.0,0.02277262]
[1767054887646,0.00051363,87180.0,87164.0,0.02277262]
[1767054888214,0.00051363,87180.0,87165.0,0.06883481]
[1767054888391,0.12817358,87179.0,87166.0,0.01147236]
[1767054888715,0.12817358,87179.0,87164.0,0.02277262]
[1767054889469,0.12817358,87179.0,87164.0,0.0113]
[1767054892098,0.12792741,87179.0,87164.0,0.0113]
[1767054893193,0.12792741,87179.0,87164.0,0.02277262]
[1767054893698,0.12792741,87179.0,87164.0,0.0113]
[1767054894975,0.00051363,87180.0,87170.0,0.01147183]
[1767054895170,0.00051363,87180.0,87171.0,0.01152]
[1767054895382,0.0002,87183.0,87174.0,0.01147131]
[1767054895579,0.0002174,87186.0,87175.0,0.01147117]
[1767054895732,0.0002174,87186.0,87174.0,0.01147131]
[1767054895934,0.0002174,87186.0,87175.0,0.01167117]
[1767054896336,0.0002174,87186.0,87175.0,0.0002]
[1767054896538,0.0002174,87186.0,87173.0,0.01147144]
[1767054896921,0.0002174,87186.0,87172.0,0.01116157]
[1767054897327,0.0002174,87186.0,87173.0,0.01147144]
[1767054897551,0.0002174,87186.0,87174.0,0.01147131]
[1767054897750,0.0002,87195.0,87177.0,0.01147091]
[1767054898007,0.0002,87195.0,87178.0,0.02299078]
[1767054898210,0.0002,87195.0,87179.0,0.01147065]
[1767054898485,0.0002,87195.0,87178.0,0.01152]
[1767054899005,0.01166854,87195.0,87178.0,0.01152]
[1767054900129,0.0002,87195.0,87178.0,0.02299078]
[1767054900273,0.01166854,87195.0,87178.0,0.01152]
[1767054900474,0.000549,87178.0,87163.0,0.0002]
[1767054900670,0.01147104,87176.0,87164.0,0.05744]
[1767054901110,0.06,87170.0,87166.0,0.00053139]
[1767054903407,0.06,87170.0,87166.0,3.9e-07]
[1767054904395,0.06,87170.0,87167.0,0.05722]
[1767054904595,0.06,87170.0,87167.0,0.056652]
[1767054905410,0.12817358,87168.0,87167.0,0.056652]
[1767054905651,0.12813126,87168.0,87167.0,0.056652]
[1767054908776,0.12813126,87168.0,87167.0,0.056252]
[1767054910631,0.12758226,87168.0,87167.0,0.056252]
[1767054912277,0.06,87170.0,87167.0,0.056252]
[1767054917017,0.05945,87170.0,87167.0,0.056252]
[1767054927287,0.01074749,87169.0,87167.0,0.056252]
[1767054927645,0.05945,87170.0,87167.0,0.056252]
[1767054927771,0.01074746,87169.0,87167.0,0.056252]
[1767054927971,0.05945,87170.0,87167.0,0.056252]
[1767054928172,0.01074747,87169.0,87167.0,0.056252]
[1767054928467,0.05945,87170.0,87167.0,0.056252]
[1767054928723,0.01075021,87169.0,87167.0,0.056252]
[1767054928942,0.05945,87170.0,87167.0,0.056252]
[1767054929156,0.01075022,87169.0,87167.0,0.056252]
[1767054929340,0.01075599,87168.0,87167.0,0.056252]
[1767054933794,0.12817358,87169.0,87167.0,0.056252]
[1767054934356,0.12817358,87169.0,87146.0,0.05737495]
[1767054934357,0.02222806,87168.0,87146.0,0.05737495]
[1767054934561,0.01156303,87168.0,87165.0,0.04592]
[1767054934773,0.01147288,87162.0,87144.0,0.01170125]
[1767054934982,9.094e-05,87168.0,87145.0,0.05744]
[1767054934983,0.01075119,87161.0,87145.0,0.05744]
[1767054935199,0.01075119,87160.0,87145.0,0.05744]
[1767054935485,0.01075119,87159.0,87145.0,0.06891512]
[1767054935834,0.01075119,87158.0,87146.0,0.01147499]
[1767054936049,0.01075119,87157.0,87145.0,0.05744]
[1767054936195,0.01075119,87156.0,87145.0,0.05744]
[1767054936409,0.01147288,87162.0,87145.0,0.05744]
[1767054936607,0.02221331,87161.0,87145.0,0.05744]
[1767054936832,0.01074029,87160.0,87145.0,0.05744]
[1767054937031,0.01074029,87159.0,87145.0,0.05744]